bitfinex-derivatives/quotes_ETHF0:USTF0_20250708
["timestamp","ask_amount","ask_price","bid_price","bid_amount"]
[1751945844951,2.34860943,2536.0,2535.9,2.11253]
[1751945845151,2.99970943,2536.0,2535.9,2.11253]
[1751945846856,3.894,2536.2,2536.1,0.78858]
[1751945847058,3.894,2536.2,2536.1,4.64614771]
[1751945849565,0.7885,2536.4,2536.3,0.78852]
[1751945849764,0.6511,2536.4,2536.3,1.46432]
[1751945850369,0.6511,2536.4,2536.3,2.12312]
[1751945850866,1.43959,2536.4,2536.3,2.12312]
[1751945851066,1.43959,2536.4,2536.3,3.11452]
[1751945851565,0.6511,2536.4,2536.3,3.11452]
[1751945852463,1.43959,2536.4,2536.3,3.11452]
[1751945853361,0.6511,2536.4,2536.3,5.30488771]
[1751945854167,0.78847,2536.5,2536.4,0.78849]
[1751945854364,0.78847,2536.5,2536.4,1.46429]
[1751945854564,0.78847,2536.5,2536.4,2.45569]
[1751945855066,1.43957,2536.5,2536.4,2.45569]
[1751945857169,3.00924288,2536.5,2536.4,2.45569]
[1751945857362,3.00924288,2536.5,2536.4,1.6672]
[1751945857759,3.00924288,2536.5,2536.4,2.45569]
[1751945859666,2.22077288,2536.5,2536.4,2.45569]
[1751945859875,0.6511,2536.5,2536.4,2.45569]
[1751945860570,1.43956,2536.5,2536.4,2.45569]
[1751945862265,1.43956,2536.5,2536.4,1.6672]
[1751945862770,1.43956,2536.5,2536.4,2.45569]
[1751945863068,0.6511,2536.5,2536.4,2.45569]
[1751945863468,1.43956,2536.5,2536.4,2.45569]
[1751945864573,0.6511,2536.5,2536.4,2.45569]
[1751945864775,3.894,2536.9,2536.7,0.7884]
[1751945865075,0.78834,2536.9,2536.8,1.3298]
[1751945865375,1.43944,2536.9,2536.8,1.3298]
[1751945865772,3.00528369,2536.9,2536.8,1.3298]
[1751945866076,7.0800914,2536.9,2536.4,0.78848]
[1751945866275,0.78849,2536.4,2536.3,0.654]
[1751945866575,1.43959,2536.4,2536.3,0.654]
[1751945867269,1.43959,2536.4,2536.3,2.11832]
[1751945867471,1.43959,2536.4,2536.3,1.3298]
[1751945868174,1.43959,2536.4,2536.3,2.11832]
[1751945868373,1.43959,2536.4,2536.3,1.3298]
[1751945868775,1.43959,2536.4,2536.3,0.654]
[1751945869180,1.43959,2536.4,2536.3,1.3298]
[1751945869773,1.43959,2536.4,2536.3,2.11832]
[1751945870571,0.78849,2536.4,2536.3,2.11832]
[1751945870776,0.78848,2536.5,2536.4,0.78846]
[1751945871076,3.894,2536.8,2536.5,0.78844]
[1751945871077,0.78845,2536.6,2536.5,0.78844]
[1751945871275,0.78843,2536.7,2536.6,0.78841]
[1751945871475,0.78843,2536.7,2536.6,2.97877771]
[1751945871675,3.894,2536.8,2536.7,0.7884]
[1751945872277,3.894,2536.8,2536.7,1.7798]
[1751945873076,4.68237,2536.8,2536.7,1.7798]
[1751945874480,5.33847,2536.8,2536.7,0.9914]
[1751945874679,4.68237,2536.8,2536.7,0.9914]
[1751945875080,5.33847,2536.8,2536.7,0.9914]
[1751945875281,0.7884,2536.7,2536.6,2.97877771]
[1751945875781,0.7884,2536.7,2536.6,4.59617771]
[1751945876782,0.78838,2536.8,2536.7,0.78837]
[1751945876979,0.78836,2536.9,2536.8,0.78835]
[1751945877179,1.44446,2536.9,2536.8,2.40575]
[1751945877382,1.44446,2536.9,2536.8,1.6174]
[1751945877889,1.44446,2536.9,2536.8,2.40577]
[1751945878391,1.44446,2536.9,2536.8,1.6174]
[1751945880688,1.44446,2536.9,2536.8,0.6416]
[1751945881794,1.44446,2536.9,2536.8,1.6174]
[1751945883188,1.44446,2536.9,2536.8,0.6416]
[1751945883398,0.7884,2536.7,2536.6,3.95458771]
[1751945883597,0.78846,2536.5,2536.4,0.78849]
[1751945883894,1.44456,2536.5,2536.4,3.09079]
[1751945884088,1.44456,2536.5,2536.4,5.28115771]
[1751945885094,0.6561,2536.5,2536.4,5.28115771]
[1751945887198,0.78843,2536.6,2536.5,0.78846]
[1751945887494,0.78842,2536.7,2536.6,0.78843]
[1751945887990,1.44452,2536.7,2536.6,0.78843]
[1751945888195,0.78846,2536.6,2536.5,0.78844]
[1751945889198,0.78846,2536.6,2536.5,2.40584]
[1751945889391,0.78841,2536.7,2536.6,0.7884]
[1751945889597,0.78838,2536.8,2536.7,0.78837]
[1751945889801,0.78838,2536.8,2536.7,1.3202]
[1751945890292,1.44448,2536.8,2536.7,2.1086]
[1751945890997,1.44448,2536.8,2536.7,1.3202]
[1751945895998,1.44448,2536.8,2536.7,2.1086]
[1751945897401,1.44448,2536.8,2536.7,1.3202]
[1751945899297,3.01239784,2536.8,2536.7,0.6786]
[1751945899500,3.01239784,2536.8,2536.7,1.3202]
[1751945900703,3.01295099,2536.8,2536.7,1.3202]
[1751945901802,3.00435099,2536.8,2536.7,2.296]
[1751945905804,3.00435099,2536.8,2536.7,1.3202]
[1751945907107,3.00435099,2536.8,2536.7,2.1086]
[1751945907305,3.00435099,2536.8,2536.7,3.1089]
[1751945907607,3.00435099,2536.8,2536.7,5.29926771]
[1751945911107,3.00435099,2536.8,2536.7,4.51086771]
[1751945911708,3.00435099,2536.8,2536.7,5.29926771]
[1751945911908,3.00435099,2536.8,2536.7,0.6786]
[1751945912310,4.28285099,2536.8,2536.7,0.6786]
[1751945914614,4.28285099,2536.8,2536.7,1.3826]
[1751945918415,3.00435099,2536.8,2536.7,1.3826]
[1751945920320,0.78849,2536.4,2536.3,1.0003]
[1751945920520,0.78849,2536.4,2536.3,1.7043]
[1751945920916,1.43599,2536.4,2536.3,1.7043]
[1751945921319,0.78849,2536.4,2536.3,1.7043]
[1751945921521,1.43599,2536.4,2536.3,1.7043]
[1751945921721,1.43599,2536.4,2536.3,0.704]
[1751945923424,1.43599,2536.4,2536.3,1.4125]
[1751945924424,3.0261777,2536.4,2536.3,0.7085]
[1751945925028,1.43599,2536.4,2536.3,0.7085]
[1751945925619,3.02599063,2536.4,2536.3,0.7085]
[1751945926727,3.02599063,2536.4,2536.3,1.4125]
[1751945928221,1.97131,2536.3,2535.9,0.78861]
[1751945928422,0.78863,2536.0,2535.9,2.20141]
[1751945928825,0.78863,2536.0,2535.9,3.90571]
[1751945929623,0.78861,2536.1,2536.0,0.78859]
[1751945930122,0.78861,2536.1,2536.0,2.20139]
[1751945931822,0.78861,2536.1,2536.0,1.4128]
[1751945932125,0.78861,2536.1,2536.0,3.87621]
[1751945932722,1.44591,2536.1,2536.0,3.0876]
[1751945932920,1.44591,2536.1,2536.0,3.87622]
[1751945934128,1.44591,2536.1,2536.0,2.46342]
[1751945935228,1.44591,2536.1,2536.0,1.6748]
[1751945935624,1.44591,2536.1,2536.0,2.46341]
[1751945938228,0.78861,2536.1,2536.0,0.78861]
[1751945940228,0.78861,2536.1,2536.0,2.52311]
[1751945942632,0.78858,2536.2,2536.1,0.78856]
[1751945942833,3.894,2536.5,2536.1,5.89632771]
[1751945943033,4.68248,2536.5,2536.4,2.97885771]
[1751945943233,6.27216229,2536.5,2536.4,3.65335771]
[1751945943429,6.27216229,2536.5,2536.4,4.71335771]
[1751945943832,6.27216229,2536.5,2536.4,3.92486771]
[1751945944324,3.03546229,2536.5,2536.4,1.7345]
[1751945944530,0.78852,2536.3,2536.2,2.51944]
[1751945945034,2.44661,2536.7,2536.2,4.59576771]
[1751945945234,0.78849,2536.5,2536.4,0.78847]
[1751945945431,2.37640427,2536.5,2536.4,1.46297]
[1751945945633,1.58791427,2536.5,2536.4,4.71333771]
[1751945946235,0.78842,2536.7,2536.6,0.78843]
[1751945946536,2.37636924,2536.7,2536.6,2.97879771]
[1751945946730,2.37636924,2536.7,2536.6,3.65329771]
[1751945947032,2.37636924,2536.7,2536.6,4.93199771]
[1751945947232,2.37636924,2536.7,2536.6,5.99199771]
[1751945947434,1.58794924,2536.7,2536.6,5.99199771]
[1751945947635,2.37634924,2536.7,2536.6,5.99199771]
[1751945947835,1.58794924,2536.7,2536.6,5.99199771]
[1751945948538,2.37634924,2536.7,2536.6,5.99199771]
[1751945949243,1.58794924,2536.7,2536.6,5.99199771]
[1751945950044,0.78834,2536.9,2536.8,0.78833]
[1751945950344,2.37555399,2536.9,2536.8,2.52283]
[1751945951646,2.37555399,2536.9,2536.8,4.71319771]
[1751945953546,2.37555399,2536.9,2536.8,3.92486771]
[1751945953945,2.37555399,2536.9,2536.8,1.7345]
[1751945954143,3.03285399,2536.9,2536.8,1.7345]
[1751945954348,2.37555399,2536.9,2536.8,1.7345]
[1751945954846,3.03285399,2536.9,2536.8,1.7345]
[1751945955250,2.37555399,2536.9,2536.8,1.7345]
[1751945955548,3.03285399,2536.9,2536.8,1.7345]
[1751945958342,3.03285399,2536.9,2536.5,0.6916]
[1751945958343,0.7884,2536.7,2536.5,0.6916]
[1751945958647,0.78843,2536.6,2536.5,2.4261]
[1751945958851,1.44573,2536.6,2536.5,2.4261]
[1751945959244,0.78843,2536.6,2536.5,2.4261]
[1751945959844,1.44573,2536.6,2536.5,2.4261]
[1751945960246,1.44573,2536.6,2536.5,1.3303]
[1751945962249,1.44573,2536.6,2536.5,2.3903]
[1751945964251,1.44573,2536.6,2536.5,4.58066771]
[1751945967451,0.78843,2536.6,2536.5,5.36912771]
[1751945968452,0.78843,2536.6,2536.5,4.58066771]
[1751945968653,0.78843,2536.6,2536.5,5.36912771]
[1751945969051,0.78843,2536.6,2536.5,2.3903]
[1751945969251,0.78843,2536.6,2536.5,5.36912771]
[1751945969554,0.78843,2536.6,2536.5,4.58066771]
[1751945970055,0.78843,2536.6,2536.5,5.36912771]
[1751945971459,0.78843,2536.6,2536.5,4.58066771]
[1751945971855,0.78843,2536.6,2536.5,5.36912771]
[1751945972160,0.78843,2536.6,2536.5,4.58066771]
[1751945972755,0.78843,2536.6,2536.5,5.36912771]
[1751945972959,0.78843,2536.6,2536.5,4.58066771]
[1751945973160,0.78843,2536.6,2536.5,5.36912771]
[1751945976764,7.64571,2537.0,2536.6,0.7884]
[1751945976765,0.78842,2536.7,2536.6,0.7884]
[1751945976965,0.78842,2536.7,2536.6,4.62046771]
[1751945977169,3.04378413,2536.7,2536.6,4.62046771]
[1751945977565,2.37308413,2536.7,2536.6,4.62046771]
[1751945977766,3.04378413,2536.7,2536.6,4.62046771]
[1751945977965,2.37308413,2536.7,2536.6,4.62046771]
[1751945978168,3.04378413,2536.7,2536.6,4.62046771]
[1751945978665,3.04378413,2536.7,2536.6,3.83206771]
[1751945978870,2.37308413,2536.7,2536.6,4.62049771]
[1751945980170,3.04378413,2536.7,2536.6,4.62049771]
[1751945980371,2.37308413,2536.7,2536.6,4.62049771]
[1751945980566,3.04378413,2536.7,2536.6,4.62049771]
[1751945980768,2.37308413,2536.7,2536.6,4.62049771]
[1751945981570,2.37308413,2536.7,2536.6,6.03739771]
[1751945982470,1.58466413,2536.7,2536.6,4.62049771]
[1751945982772,3.894,2537.0,2536.6,4.62049771]
[1751945982773,2.35811135,2537.3,2537.0,0.78828]
[1751945982971,0.78829,2537.1,2537.0,0.78828]
[1751945983174,2.37301607,2537.2,2537.1,0.78827]
[1751945983368,3.04295105,2537.2,2537.1,3.61733771]
[1751945983569,3.04295105,2537.2,2537.1,4.62033771]
[1751945983769,2.37225105,2537.2,2537.1,3.83206771]
[1751945984070,2.37225105,2537.2,2537.1,4.62033771]
[1751945984270,0.78824,2537.3,2537.2,0.78824]
[1751945984474,0.78824,2537.3,2537.2,1.79124]
[1751945984674,4.6822,2537.4,2537.2,2.42994]
[1751945984967,4.6822,2537.4,2537.3,2.97857771]
[1751945985174,6.26525607,2537.4,2537.3,4.62027771]
[1751945985374,6.93595607,2537.4,2537.3,4.62027771]
[1751945986163,6.14775607,2537.4,2537.3,4.62027771]
[1751945986364,6.93593607,2537.4,2537.3,4.62027771]
[1751945987272,5.35288,2537.4,2537.3,4.62027771]
[1751945987475,5.35288,2537.4,2537.3,3.83206771]
[1751945987674,5.35288,2537.4,2537.3,4.62027771]
[1751945988773,0.78818,2537.4,2537.3,4.62027771]
[1751945989873,0.78816,2537.5,2537.4,0.78817]
[1751945990072,5.678,2537.7,2537.4,0.6398]
[1751945990273,0.6515,2537.5,2537.4,1.6428]
[1751945990875,1.43968,2537.5,2537.4,2.43098]
[1751945991168,0.6515,2537.5,2537.4,4.62134771]
[1751945992370,1.43965,2537.5,2537.4,4.62134771]
[1751945993579,0.78815,2537.6,2537.5,0.78814]
[1751945993775,0.78812,2537.6,2537.5,3.87306771]
[1751945993975,0.78812,2537.6,2537.5,4.54336771]
[1751945994377,1.43962,2537.6,2537.5,4.54336771]
[1751945994780,0.6515,2537.6,2537.5,5.33151771]
[1751945995072,0.78812,2537.6,2537.5,5.33151771]
[1751945995781,0.78812,2537.7,2537.6,0.78812]
[1751945996082,0.78812,2537.6,2537.5,3.64880771]
[1751945996282,0.78812,2537.6,2537.5,3.50046771]
[1751945996576,0.78812,2537.6,2537.5,5.33149771]
[1751945996778,1.7645,2538.0,2537.5,4.54336771]
[1751945997076,2.07729,2538.0,2537.9,2.19036771]
[1751945997281,2.72879,2538.0,2537.9,2.19036771]
[1751945997982,0.78802,2537.9,2537.8,0.6785]
[1751945999783,1.43952,2537.9,2537.8,2.10636]
[1751945999982,0.78802,2537.9,2537.8,2.10636]
[1751946000181,0.4752,2538.2,2537.8,1.3183]
[1751946000484,0.6985,2538.3,2538.1,2.19036771]
[1751946000485,0.78792,2538.3,2538.1,2.19036771]
[1751946000683,0.78792,2538.3,2538.2,1.43253]
[1751946000882,1.43942,2538.3,2538.2,1.43253]
[1751946001084,0.78792,2538.3,2538.2,1.43253]
[1751946001282,1.43942,2538.3,2538.2,0.6446]
[1751946001483,2.84186771,2538.3,2537.8,1.0429]
[1751946001684,0.78802,2538.0,2537.8,2.49763]
[1751946001884,1.43952,2538.0,2537.9,1.42783]
[1751946002184,0.6515,2538.0,2537.9,4.66109771]
[1751946002384,1.43949,2538.0,2537.9,4.66109771]
[1751946003690,1.43949,2538.0,2537.9,3.87306771]
[1751946004088,1.43949,2538.0,2537.9,4.66109771]
[1751946004290,1.43949,2538.0,2537.9,3.87306771]
[1751946004485,1.43949,2538.0,2537.9,2.83016771]
[1751946004985,1.96961,2538.5,2537.9,3.87306771]
[1751946005191,1.96961,2538.5,2538.2,2.19036771]
[1751946005392,0.7879,2538.3,2538.2,3.87306771]
[1751946005592,1.4394,2538.3,2538.2,3.87306771]
[1751946005788,0.7879,2538.3,2538.2,3.87306771]
[1751946006287,1.4394,2538.3,2538.2,0.6398]
[1751946006791,0.7879,2538.3,2538.2,0.6398]
[1751946006988,1.4394,2538.3,2538.2,0.6398]
[1751946007188,0.7879,2538.3,2538.2,0.6398]
[1751946008284,1.4394,2538.3,2538.2,0.6398]
[1751946008590,0.7879,2538.3,2538.2,3.87306771]
[1751946008784,1.4394,2538.3,2538.2,3.87306771]
[1751946008982,0.7879,2538.3,2538.2,3.87306771]
[1751946009184,1.4394,2538.3,2538.2,3.87306771]
[1751946009692,0.7879,2538.3,2538.2,3.87306771]
[1751946009891,0.7879,2538.3,2538.2,2.83016771]
[1751946010083,1.4394,2538.3,2538.2,0.6398]
[1751946011290,1.4394,2538.3,2538.2,1.42773]
[1751946011593,1.4394,2538.3,2538.2,0.6398]
[1751946012293,1.4394,2538.3,2538.2,1.6827]
[1751946012590,1.4394,2538.3,2538.1,0.6976]
[1751946012591,0.78793,2538.2,2538.1,0.6976]
[1751946012793,0.78793,2538.2,2538.1,1.3374]
[1751946013394,0.78802,2537.9,2537.8,1.0429]
[1751946013585,0.78802,2537.9,2537.8,1.6827]
[1751946014092,0.78806,2537.8,2537.7,0.6563]
[1751946014287,0.78806,2537.8,2537.7,1.2961]
[1751946014492,0.78806,2537.8,2537.7,0.6563]
[1751946014697,0.78806,2537.8,2537.7,1.2961]
[1751946016199,1.43956,2537.8,2537.7,1.2961]
[1751946016499,0.78806,2537.8,2537.7,1.2961]
[1751946016698,1.43956,2537.8,2537.7,1.2961]
[1751946017400,0.6515,2537.8,2537.7,2.08419]
[1751946017691,3.894,2538.2,2537.9,0.78799]
[1751946017894,4.68195,2538.2,2538.1,0.78796]
[1751946018100,5.33345,2538.2,2538.1,2.47066]
[1751946018301,1.43945,2538.2,2538.1,2.47066]
[1751946018494,1.43945,2538.2,2538.1,0.6398]
[1751946020798,0.78796,2538.1,2538.0,0.6819]
[1751946021094,1.43776,2538.1,2538.0,1.3896]
[1751946021499,1.43776,2538.1,2538.0,0.6819]
[1751946021696,1.43776,2538.1,2538.0,1.3896]
[1751946021901,1.43776,2538.1,2538.0,2.4325]
[1751946022100,1.43776,2538.1,2538.0,1.3896]
[1751946022799,1.97001,2538.0,2537.5,1.81782]
[1751946023004,1.43794,2537.6,2537.5,0.7077]
[1751946023702,0.78815,2537.5,2537.4,0.6579]
[1751946023902,0.78815,2537.5,2537.1,3.59016771]
[1751946023903,0.78824,2537.2,2537.1,1.81797]
[1751946024205,0.78824,2537.2,2537.1,2.52567]
[1751946024700,1.8686,2537.5,2537.1,1.7374]
[1751946024900,0.78816,2537.5,2537.4,0.78818]
[1751946025099,0.78816,2537.5,2537.4,2.52558]
[1751946025302,0.78816,2537.5,2537.4,3.18348]
[1751946026409,1.43796,2537.5,2537.4,3.18348]
[1751946026611,0.78816,2537.5,2537.4,3.18348]
[1751946026807,1.43796,2537.5,2537.4,3.18348]
[1751946027308,0.78814,2537.6,2537.5,0.78813]
[1751946027506,0.78814,2537.6,2537.5,2.52553]
[1751946028406,0.78814,2537.6,2537.5,4.71589771]
[1751946028606,0.78814,2537.6,2537.5,6.04759771]
[1751946029312,0.78814,2537.6,2537.5,5.25946771]
[1751946029606,1.43794,2537.6,2537.5,3.0691]
[1751946029805,0.78814,2537.6,2537.5,1.49585]
[1751946030004,1.43794,2537.6,2537.5,2.52555]
[1751946030710,0.78814,2537.6,2537.5,2.52555]
[1751946033211,1.43794,2537.6,2537.5,2.52555]
[1751946033420,0.78814,2537.6,2537.5,2.52555]
[1751946034217,3.894,2537.9,2537.7,0.78806]
[1751946034413,0.78806,2537.8,2537.7,0.78806]
[1751946034716,0.78806,2537.8,2537.7,1.49576]
[1751946035109,0.78806,2537.8,2537.7,2.52546]
[1751946036609,0.78806,2537.8,2537.7,4.71582771]
[1751946036809,0.78805,2537.9,2537.8,0.78804]
[1751946037012,3.01128214,2537.9,2537.8,2.52544]
[1751946037210,1.43785,2537.9,2537.8,2.52544]
[1751946037411,1.43785,2537.9,2537.8,1.7374]
[1751946037616,0.78805,2537.9,2537.8,2.52546]
[1751946037816,1.43785,2537.9,2537.8,2.52546]
[1751946038219,1.43785,2537.9,2537.8,1.7374]
[1751946039717,1.43785,2537.9,2537.8,2.52546]
[1751946040219,0.78802,2538.0,2537.9,0.788]
[1751946040420,0.78802,2538.0,2537.9,1.7374]
[1751946040618,1.43782,2538.0,2537.9,1.7374]
[1751946040822,1.43782,2538.0,2537.9,2.52542]
[1751946041017,1.43782,2538.0,2537.9,1.7374]
[1751946043919,1.43782,2538.0,2537.9,2.52543]
[1751946044822,1.43782,2538.0,2537.9,1.7374]
[1751946045722,1.43782,2538.0,2537.9,2.52543]
[1751946046114,1.43782,2538.0,2537.9,1.7374]
[1751946046521,1.43782,2538.0,2537.9,2.52543]
[1751946050523,1.43782,2538.0,2537.9,1.7374]
[1751946050822,1.43782,2538.0,2537.9,2.52543]
[1751946052023,1.43782,2538.0,2537.9,1.7374]
[1751946052425,1.43782,2538.0,2537.9,2.52543]
[1751946053926,1.43782,2538.0,2537.9,3.21483]
[1751946054821,0.6498,2538.0,2537.9,3.21483]
[1751946055018,0.78799,2538.0,2537.9,3.21483]
[1751946056028,1.46869,2538.0,2537.9,3.21483]
[1751946056227,0.78799,2538.0,2537.9,3.21483]
[1751946056526,1.46869,2538.0,2537.9,3.21483]
[1751946057429,0.6807,2538.0,2537.9,3.21483]
[1751946057630,0.78798,2538.1,2538.0,0.78799]
[1751946057826,0.78798,2538.1,2538.0,2.50669]
[1751946058628,1.46868,2538.1,2538.0,2.50669]
[1751946058926,0.78798,2538.1,2538.0,2.50669]
[1751946059130,1.46868,2538.1,2538.0,2.50669]
[1751946059530,1.46868,2538.1,2538.0,1.47509]
[1751946060329,0.78798,2538.1,2538.0,1.47509]
[1751946060730,1.46868,2538.1,2538.0,1.47509]
[1751946061530,3.0423483,2538.1,2538.0,1.47509]
[1751946062633,2.2543683,2538.1,2538.0,1.47509]
[1751946062932,1.46866,2538.1,2538.0,1.47509]
[1751946063128,1.46866,2538.1,2538.0,2.86969]
[1751946063435,3.04283133,2538.1,2538.0,3.90129]
[1751946063634,0.78792,2538.3,2538.2,0.78793]
[1751946063835,0.78792,2538.3,2538.2,2.97829771]
[1751946064132,2.35912241,2538.3,2538.2,2.97829771]
[1751946064834,2.35912241,2538.3,2538.2,3.66539771]
[1751946065034,2.35912241,2538.3,2538.2,4.69699771]
[1751946065334,3.03982241,2538.3,2538.2,3.90906771]
[1751946065536,2.35912241,2538.3,2538.2,3.90906771]
[1751946066435,2.35912241,2538.3,2538.2,4.69699771]
[1751946068340,3.03982241,2538.3,2538.2,4.69699771]
[1751946068537,2.35912241,2538.3,2538.2,4.69699771]
[1751946069039,2.35805455,2538.3,2538.2,4.69699771]
[1751946070838,3.03875455,2538.3,2538.2,4.69699771]
[1751946071039,2.35805455,2538.3,2538.2,4.69699771]
[1751946071640,3.03875455,2538.3,2538.2,4.69699771]
[1751946073143,3.03856496,2538.3,2538.2,4.69699771]
[1751946074242,3.03856496,2538.3,2538.2,2.50663]
[1751946074747,3.03868618,2538.3,2538.2,2.50663]
[1751946075239,2.35798618,2538.3,2538.2,2.50663]
[1751946075641,2.35796618,2538.3,2538.2,2.50663]
[1751946076345,3.03866618,2538.3,2538.2,0.6871]
[1751946077040,3.03866618,2538.3,2537.8,1.97014]
[1751946077041,2.94966618,2538.3,2537.8,1.81963]
[1751946077247,0.78805,2537.9,2537.8,1.81963]
[1751946077446,0.78805,2537.9,2537.8,2.50673]
[1751946078146,0.78805,2537.9,2537.8,1.7187]
[1751946078347,0.78805,2537.9,2537.8,2.50676]
[1751946079548,0.78801,2538.0,2537.9,0.78798]
[1751946081750,0.78801,2538.0,2537.9,1.48278]
[1751946082051,1.45801,2538.0,2537.9,1.48278]
[1751946082251,0.78801,2538.0,2537.9,2.51438]
[1751946082449,1.45801,2538.0,2537.9,1.48278]
[1751946084754,1.45801,2538.0,2537.9,2.46998]
[1751946085454,0.67,2538.0,2537.9,2.46998]
[1751946086056,1.45799,2538.0,2537.9,2.46998]
[1751946088656,1.45799,2538.0,2537.9,4.66034771]
[1751946088954,0.67,2538.0,2537.9,4.66034771]
[1751946089145,0.78793,2538.3,2538.2,0.78793]
[1751946089351,3.02980667,2538.3,2538.2,4.66029771]
[1751946089749,2.24187667,2538.3,2538.2,4.66029771]
[1751946090449,1.57187667,2538.3,2538.2,4.66029771]
[1751946092260,2.35977667,2538.3,2538.2,4.66029771]
[1751946092459,1.57187667,2538.3,2538.2,4.66029771]
[1751946094061,2.35977667,2538.3,2538.2,4.66029771]
[1751946094251,0.78789,2538.4,2538.3,0.7879]
[1751946094451,2.35214781,2538.4,2538.3,3.152]
[1751946094659,3.02214781,2538.4,2538.3,3.152]
[1751946094867,2.35214781,2538.4,2538.3,3.152]
[1751946095062,2.35214781,2538.4,2538.3,2.3641]
[1751946095263,3.02214781,2538.4,2538.3,3.152]
[1751946095458,2.23425781,2538.4,2538.3,3.152]
[1751946095762,1.56425781,2538.4,2538.3,3.152]
[1751946096364,0.78782,2538.6,2538.5,0.78784]
[1751946096558,1.45782,2538.6,2538.5,1.48264]
[1751946096760,3.02177705,2538.6,2538.5,1.48264]
[1751946096966,3.02177705,2538.6,2538.5,0.6948]
[1751946097366,3.02177705,2538.6,2538.5,1.48264]
[1751946097770,3.02177705,2538.6,2538.5,0.6948]
[1751946099771,0.78793,2538.3,2538.1,0.78795]
[1751946100071,1.45793,2538.3,2538.2,0.6948]
[1751946100264,0.67,2538.3,2538.0,3.65415771]
[1751946100471,0.78796,2538.1,2538.0,0.6758]
[1751946100669,1.45796,2538.1,2538.0,1.3706]
[1751946104270,0.67,2538.1,2538.0,2.15859]
[1751946104465,0.67,2538.1,2538.0,2.46999]
[1751946104673,0.78815,2537.5,2537.4,4.68362302]
[1751946104875,0.78821,2537.3,2536.8,4.68362302]
[1751946105070,0.6735,2537.4,2537.2,0.6948]
[1751946105269,0.78826,2537.2,2537.0,0.78829]
[1751946105470,2.35811135,2537.9,2537.1,2.88516771]
[1751946105671,2.23644006,2537.8,2537.7,2.19036771]
[1751946105977,3.02450006,2537.8,2537.7,2.19036771]
[1751946107274,1.46156,2537.8,2537.7,2.19036771]
[1751946107477,0.78806,2537.8,2537.7,2.19036771]
[1751946108171,1.45806,2537.8,2537.7,2.88516771]
[1751946108475,0.67,2537.8,2537.7,3.67325771]
[1751946109074,0.78804,2537.9,2537.7,3.67325771]
[1751946109377,1.45806,2537.8,2537.7,2.88516771]
[1751946109567,1.45806,2537.8,2537.7,3.67325771]
[1751946109766,1.45806,2537.8,2537.7,2.88516771]
[1751946111272,1.45806,2537.8,2537.7,2.19036771]
[1751946111473,0.78809,2537.7,2537.6,0.7012]
[1751946111672,3.62746,2537.7,2537.1,6.46426]
[1751946111971,0.78825,2537.2,2536.9,6.87399073]
[1751946112176,1.43075,2537.2,2537.1,0.6506]
[1751946112377,2.44545,2537.2,2537.1,0.6506]
[1751946112774,1.43075,2537.2,2537.1,1.43887]
[1751946112975,1.43075,2537.2,2537.1,2.09707]
[1751946113279,1.43075,2537.2,2537.1,1.3088]
[1751946113679,1.43075,2537.2,2537.1,2.09707]
[1751946113884,1.6334,2537.6,2537.1,4.51716771]
[1751946114085,0.78812,2537.6,2537.5,2.19036771]
[1751946114384,1.43062,2537.6,2537.5,2.84096771]
[1751946114780,1.43062,2537.6,2537.5,3.48106771]
[1751946114978,3.00942966,2537.6,2537.5,3.48106771]
[1751946115179,1.43062,2537.6,2537.5,3.48106771]
[1751946116079,1.43062,2537.6,2537.5,2.83046771]
[1751946116280,1.43062,2537.6,2537.5,3.48106771]
[1751946119377,1.6133,2537.6,2537.2,8.493]
[1751946119585,0.78821,2537.3,2537.2,8.493]
[1751946119786,1.43071,2537.3,2537.2,9.1436]
[1751946120284,1.43071,2537.3,2537.2,8.493]
[1751946120485,0.78824,2537.2,2537.1,9.2014]
[1751946120686,0.78824,2537.2,2537.1,10.64027]
[1751946121486,1.43074,2537.2,2537.1,10.64027]
[1751946122182,1.43074,2537.2,2537.1,9.852]
[1751946122587,1.43074,2537.2,2537.1,10.64027]
[1751946122783,1.43074,2537.2,2537.1,11.65827]
[1751946123088,1.43074,2537.2,2537.1,13.05887]
[1751946124886,0.78824,2537.2,2537.1,13.05887]
[1751946128489,0.78823,2537.3,2537.2,0.78821]
[1751946128784,0.78823,2537.3,2537.2,6.00107771]
[1751946129592,0.7882,2537.4,2537.3,0.78817]
[1751946129888,0.7882,2537.4,2537.3,3.81067]
[1751946130693,1.4307,2537.4,2537.3,2.79267]
[1751946133788,1.4307,2537.4,2537.3,3.81067]
[1751946136894,1.4307,2537.4,2537.3,2.79267]
[1751946137095,1.4307,2537.4,2537.3,3.81067]
[1751946137793,1.4307,2537.4,2537.3,2.79267]
[1751946138695,1.4307,2537.4,2537.3,1.43877]
[1751946142097,1.4307,2537.4,2537.3,2.45677]
[1751946143192,1.4307,2537.4,2537.3,10.90677]
[1751946144098,1.4307,2537.4,2537.3,9.88877]
[1751946146703,1.4307,2537.4,2537.3,9.23817]
[1751946146907,1.4307,2537.4,2537.3,9.93867]
[1751946147598,1.4307,2537.4,2537.3,9.1505]
[1751946149404,1.4307,2537.4,2537.3,9.93871]
[1751946149606,1.4307,2537.4,2537.3,1.48871]
[1751946149904,1.4307,2537.4,2537.3,9.93871]
[1751946150107,1.4307,2537.4,2537.3,0.7005]
[1751946150302,2.4319,2537.4,2537.3,9.1505]
[1751946150500,1.4307,2537.4,2537.3,0.7005]
[1751946150701,2.4319,2537.4,2537.3,0.7005]
[1751946153708,5.42143922,2537.4,2537.3,9.1505]
[1751946154303,3.7634,2537.4,2537.3,9.1505]
[1751946155004,3.7634,2537.4,2537.3,0.7005]
[1751946157008,5.39376091,2537.4,2537.3,0.7005]
[1751946160515,4.06226091,2537.4,2537.3,0.7005]